bitfinex/quotes_ETHUSD_20241103
["timestamp","ask_amount","ask_price","bid_price","bid_amount"]
[1730604701251,4.103,2437.3,2437.0,5.57468144]
[1730604701410,0.01,2438.0,2437.0,5.57468144]
[1730604701411,4.10249,2437.6,2437.1,4.10316]
[1730604702012,4.10266,2437.5,2437.0,9.67807144]
[1730604702211,0.898992,2437.6,2437.0,9.67807144]
[1730604702518,0.898992,2437.6,2437.1,4.10323]
[1730604702519,4.10247,2437.6,2437.1,4.10323]
[1730604702726,4.10247,2437.6,2437.2,0.0563]
[1730604703432,8.81903478,2438.0,2437.4,4.10265]
[1730604703433,4.10198,2437.9,2437.4,4.10265]
[1730604703638,4.10198,2437.9,2437.4,8.2053]
[1730604703819,4.10197,2437.9,2437.4,4.92881]
[1730604704023,4.10174,2438.0,2437.6,4.10238]
[1730604704253,4.1014,2438.2,2437.7,4.15841]
[1730604704481,0.30389913,2438.1,2437.7,4.15841]
[1730604704695,4.1014,2438.2,2437.7,4.15841]
[1730604705188,4.10141,2438.2,2437.7,0.0563]
[1730604705350,3.55581846,2438.5,2437.9,4.10179]
[1730604705351,7.24622751,2438.5,2437.9,4.10179]
[1730604705648,7.24622751,2438.5,2438.0,4.10164]
[1730604705649,0.30402514,2438.4,2438.0,4.10164]
[1730604705852,1.42791273,2438.5,2438.1,4.10152]
[1730604706178,0.3040957,2438.4,2438.1,4.15773]
[1730604706390,4.10108,2438.4,2438.1,0.0563]
[1730604706678,4.10103,2438.5,2438.1,0.0563]
[1730604706885,0.303989,2438.4,2438.1,0.0563]
[1730604707041,4.10096,2438.5,2438.1,0.0563]
[1730604707441,0.30399965,2438.4,2438.1,0.0563]
[1730604707675,4.10096,2438.5,2438.1,4.15785]
[1730604707911,0.30409784,2438.4,2438.1,4.15785]
[1730604708043,0.30409784,2438.4,2438.2,4.10136]
[1730604708242,5.81794478,2438.7,2438.2,4.10125]
[1730604708444,0.30419458,2438.6,2438.2,4.10125]
[1730604708746,0.30419458,2438.5,2438.2,4.10125]
[1730604709050,4.10064,2438.7,2438.2,4.10125]
[1730604709380,0.30419978,2438.6,2438.3,4.10113]
[1730604709596,2.12790573,2439.0,2438.5,4.1008]
[1730604709597,5.81736478,2439.0,2438.5,4.1008]
[1730604709788,0.3041997,2438.9,2438.5,4.1008]
[1730604710082,4.10023,2438.9,2438.5,4.1008]
[1730604710279,4.10023,2438.9,2438.6,0.0563]
[1730604710496,6.60744478,2439.3,2438.6,0.0563]
[1730604710644,4.40392383,2439.2,2438.6,4.15685]
[1730604710843,1.66416318,2439.3,2438.6,4.15685]
[1730604711044,4.09996,2439.1,2438.6,4.15685]
[1730604711277,4.09996,2439.1,2438.6,8.25748]
[1730604711482,8.19992,2439.1,2438.6,4.15685]
[1730604711713,4.09996,2439.1,2438.6,4.15685]
[1730604711850,4.10005,2439.0,2438.6,4.15685]
[1730604712050,4.0998,2439.2,2438.7,4.10052]
[1730604712561,4.88982,2439.5,2439.0,4.09999]
[1730604712869,1.71730478,2439.8,2439.1,4.23811344]
[1730604712870,4.09892,2439.7,2439.1,4.23811344]
[1730604713076,4.09858,2439.9,2439.2,4.09954]
[1730604713271,0.7905,2440.1,2439.1,4.15613]
[1730604713272,4.09911,2439.6,2439.1,4.15613]
[1730604713651,4.09883,2439.8,2439.3,4.09951]
[1730604714076,4.09888,2439.7,2439.2,4.09954]
[1730604714262,0.7129187,2440.0,2439.1,4.15613]
[1730604714263,4.09852,2439.9,2439.1,4.15613]
[1730604714477,4.09887,2439.7,2439.2,4.09961]
[1730604714983,4.09887,2439.7,2439.1,4.15613]
[1730604714984,8.19789,2439.7,2439.1,4.15613]
[1730604715153,4.09908,2439.6,2439.1,4.15613]
[1730604715362,4.09908,2439.6,2439.2,0.415613]
[1730604715561,4.09887,2439.7,2439.2,4.515223]
[1730604715951,4.09898,2439.7,2439.2,4.515303]
[1730604716172,8.19797,2439.7,2439.2,4.515303]
[1730604716491,8.19797,2439.7,2439.2,0.415613]
[1730604716786,4.09898,2439.7,2439.2,0.415613]
[1730604716994,4.09897,2439.7,2439.3,0.4571663]
[1730604717164,8.19794,2439.7,2439.3,0.4571663]
[1730604718161,4.09897,2439.7,2439.3,4.5566763]
[1730604718597,4.09897,2439.7,2439.3,0.4571663]
[1730604718891,4.09905,2439.6,2439.3,0.4571663]
[1730604719071,4.0987,2439.8,2439.3,0.4571663]
[1730604719257,4.0987,2439.8,2439.4,0.45568063]
[1730604719857,4.09891,2439.7,2439.4,0.45568063]
[1730604722089,4.09871,2439.8,2439.3,4.09953]
[1730604722697,4.09797,2440.3,2439.9,0.0563]
[1730604722901,0.7905,2440.4,2439.9,4.15481]
[1730604723187,4.09788,2440.3,2439.9,0.0563]
[1730604724391,4.09768,2440.4,2439.9,4.15469]
[1730604725288,4.0976,2440.5,2440.0,4.09831]
[1730604725499,4.09785,2440.4,2439.9,4.15469]
[1730604725787,4.0976,2440.5,2440.0,4.09823]
[1730604726105,4.0976,2440.5,2440.1,0.825292]
[1730604726285,3.9476,2440.5,2440.1,0.825292]
[1730604726851,4.09771,2440.4,2440.1,0.825292]
[1730604727063,4.09771,2440.4,2439.9,4.15469]
[1730604727269,3.9476,2440.5,2440.0,4.09827]
[1730604727464,4.09729,2440.7,2440.1,4.09805]
[1730604727764,4.09729,2440.7,2440.3,4.09784]
[1730604728288,4.09729,2440.7,2440.2,0.0563]
[1730604728495,4.09736,2440.6,2440.2,0.471735]
[1730604728707,0.7703,2441.0,2440.0,0.0563]
[1730604728708,4.09785,2440.3,2440.0,0.0563]
[1730604729509,4.09795,2440.3,2439.5,0.0563]
[1730604729801,0.7703,2439.9,2439.1,4.09978]
[1730604730094,4.0987,2439.8,2439.3,4.09945]
[1730604730288,8.19751,2439.8,2439.3,4.09945]
[1730604730519,4.507825,2440.2,2439.5,0.0563]
[1730604730520,4.09847,2440.0,2439.5,0.0563]
[1730604730727,4.09847,2440.0,2439.5,4.57913915]
[1730604731391,4.09813,2440.2,2439.6,4.09903]
[1730604731607,7.09745,2440.6,2439.7,0.08196975]
[1730604731608,4.86777,2440.6,2439.7,0.08196975]
[1730604731949,4.09747,2440.6,2440.1,4.09811]
[1730604732096,8.19494,2440.6,2440.1,4.09811]
[1730604732291,4.09747,2440.6,2440.1,0.819636]
[1730604732492,4.09755,2440.5,2440.1,0.819636]
[1730604733428,4.0972,2440.7,2440.2,0.13825463]
[1730604733720,4.0972,2440.7,2440.2,4.1543]
[1730604734030,4.09702,2440.8,2440.3,9.1028126]
[1730604734391,4.09702,2440.8,2440.3,5.0049626]
[1730604735231,4.09696,2440.9,2440.5,4.09749]
[1730604735402,0.7703,2441.3,2440.7,4.09704]
[1730604735403,4.09635,2441.2,2440.7,4.09704]
[1730604735611,4.09668,2441.0,2440.6,4.15352]
[1730604735800,4.09635,2441.2,2440.6,4.978634]
[1730604736231,4.09652,2441.1,2440.6,4.978634]
[1730604737237,4.09652,2441.1,2440.7,4.09717]
[1730604737543,4.09652,2441.1,2440.6,4.978744]
[1730604737701,4.0962,2441.3,2440.7,0.7978744]
[1730604737903,4.09643,2441.2,2440.7,4.97689791]
[1730604739004,4.86598,2441.6,2440.7,4.97689791]
[1730604739005,4.09585,2441.5,2440.7,0.7978744]
[1730604739334,4.09652,2441.1,2440.7,0.7978744]
[1730604740442,4.09646,2441.2,2440.7,0.7978744]
[1730604740652,4.09651,2441.1,2440.7,0.7978744]
[1730604740946,4.09651,2441.1,2440.8,0.49514244]
[1730604741761,4.09645,2441.2,2440.8,0.49514244]
[1730604742104,8.19288,2441.2,2440.8,0.49514244]
[1730604742343,0.7703,2441.6,2441.0,4.15287]
[1730604742344,4.09592,2441.5,2441.0,4.15287]
[1730604742642,4.09577,2441.6,2441.1,4.92957535]
[1730604743213,4.09577,2441.6,2441.1,9.02600535]
[1730604743422,4.09577,2441.6,2441.1,4.92957535]
[1730604743638,4.09577,2441.6,2441.1,0.83315535]
[1730604743943,4.09585,2441.5,2441.1,0.83315535]
[1730604744150,4.09577,2441.6,2441.2,0.49860454]
[1730604744352,1.48674252,2441.8,2441.1,0.83315535]
[1730604744504,4.09609,2441.4,2441.0,0.0563]
[1730604744707,4.09577,2441.6,2441.0,4.15289]
[1730604744922,4.09591,2441.5,2441.0,4.15289]
[1730604745425,4.09591,2441.5,2441.1,4.09648]
[1730604745643,4.09554,2441.7,2441.0,0.0563]
[1730604745644,4.0955,2441.7,2441.0,0.0563]
[1730604745837,4.0955,2441.7,2440.8,4.09692]
[1730604745838,4.09637,2441.2,2440.8,4.15322]
[1730604746211,4.09637,2441.2,2440.8,3.0563]
[1730604746411,4.09637,2441.2,2440.8,0.0563]
[1730604746640,4.09618,2441.3,2440.8,4.1533]
[1730604747143,4.09618,2441.3,2440.9,4.09684]
[1730604747343,4.09618,2441.3,2441.0,0.825014]
[1730604748215,4.09618,2441.3,2440.8,4.1533]
[1730604748459,4.09618,2441.3,2440.9,4.09684]
[1730604748822,4.09618,2441.3,2440.8,4.1533]
[1730604749459,4.09625,2441.3,2440.8,4.1533]
[1730604750153,4.09625,2441.3,2440.8,8.25022]
[1730604750357,4.09584,2441.5,2440.9,4.921792]
[1730604750560,4.09602,2441.4,2440.9,4.921792]
[1730604750760,4.09618,2441.3,2440.9,4.921792]
[1730604750922,8.19248,2441.3,2440.9,0.825022]
[1730604751326,4.09618,2441.3,2440.9,0.825022]
[1730604751960,4.09584,2441.5,2440.8,0.0563]
[1730604752157,4.09633,2441.3,2440.7,4.09706]
[1730604752366,4.09608,2441.4,2440.7,4.17899213]
[1730604752662,4.09635,2441.2,2440.7,4.17899213]
[1730604752837,4.09635,2441.2,2440.8,0.83325221]
[1730604753050,4.09591,2441.5,2441.1,0.0563]
[1730604753253,4.9624004,2441.8,2441.1,4.15281]
[1730604753474,4.9624004,2441.8,2441.3,4.09617]
[1730604753667,4.1561604,2441.8,2441.3,4.09609]
[1730604753875,4.1561604,2441.8,2441.4,4.09601]
[1730604753876,0.0607404,2441.8,2441.4,4.09601]
[1730604754382,0.0607404,2441.8,2441.5,0.0563]
[1730604754590,4.1561004,2441.8,2441.5,0.0563]
[1730604754738,0.0607404,2441.8,2441.5,0.0563]
[1730604755092,0.0607404,2441.8,2441.5,0.5130547]
[1730604755738,4.1560804,2441.8,2441.5,0.5130547]
[1730604755942,4.1560804,2441.8,2441.5,0.0563]
[1730604756134,4.09567,2441.6,2441.5,0.0563]
[1730604756443,4.09567,2441.6,2441.2,0.0563]
[1730604756963,4.0956,2441.7,2441.3,4.09617]
[1730604757585,4.1560804,2441.8,2441.3,4.09617]
[1730604757882,4.1560804,2441.8,2441.4,0.824869]
[1730604758237,0.0607404,2441.8,2441.4,4.920869]
[1730604758871,0.0607404,2441.8,2441.4,4.920839]
[1730604760571,0.0607404,2441.8,2441.5,4.09576]
[1730604760885,0.0607404,2441.8,2441.5,4.9974199]
[1730604762184,0.0607404,2441.8,2441.7,4.0955]
[1730604762479,0.0607404,2441.8,2441.7,0.0563]
[1730604763546,0.0607404,2441.8,2441.5,4.9974799]
[1730604763851,0.0607404,2441.8,2441.6,4.09566]
[1730604764430,0.0607404,2441.8,2441.7,4.1518]
[1730604767567,0.0607404,2441.8,2441.7,7.23369325]
[1730604768037,0.0607404,2441.8,2441.7,7.1618]
[1730604769770,0.0607404,2441.8,2441.7,7.1518]
[1730604770203,0.0607404,2441.8,2441.7,8.56355614]
[1730604770523,0.0607404,2441.8,2441.7,8.55355614]
[1730604775832,0.0607404,2441.8,2441.7,1.40175614]
[1730604776127,0.0607404,2441.8,2441.7,4.0955]
[1730604776688,0.0607404,2441.8,2441.7,4.17739972]
[1730604776890,0.0607404,2441.8,2441.7,4.0955]
[1730604777323,0.0607404,2441.8,2441.7,7.0955]
[1730604780592,0.0607404,2441.8,2441.7,7.2336922]
[1730604780891,0.0607404,2441.8,2441.7,8.64262856]
[1730604781097,0.0607404,2441.8,2441.7,8.56073636]
[1730604782002,0.8235,2442.5,2441.7,4.46523636]
[1730604782199,0.8235,2442.5,2442.2,4.09453]
[1730604782402,0.8235,2442.5,2442.3,4.09446]
[1730604782718,0.8235,2442.5,2442.3,0.818899]
[1730604783595,4.09418,2442.5,2442.3,0.818899]
[1730604783944,0.7612,2442.8,2442.4,4.09425]
[1730604784237,0.7612,2442.8,2442.4,4.09422]
[1730604784391,0.8219404,2443.0,2442.6,4.09389]
[1730604784599,0.8219404,2443.0,2442.5,0.08188032]
[1730604784600,0.0607404,2443.0,2442.9,4.09349]
[1730604784906,0.0607404,2443.0,2442.8,8.1872]
[1730604785109,0.0607404,2443.0,2442.9,4.09349]
[1730604785496,0.0607404,2443.0,2442.9,4.17535327]
[1730604785796,0.0607404,2443.0,2442.9,4.09349]
[1730604786229,0.0607404,2443.0,2442.8,0.82435]
[1730604788892,0.0607404,2443.0,2442.4,7.09423]
[1730604788893,4.09351,2442.9,2442.4,7.09423]
[1730604790146,0.7612,2442.8,2442.1,4.09472]
[1730604790303,4.09428,2442.5,2442.0,4.09498]
[1730604790498,0.7612,2442.4,2442.0,4.0949]
[1730604790702,0.7612,2442.4,2442.1,0.818994]
[1730604792096,4.85555,2442.4,2442.1,0.818994]
[1730604792415,0.7612,2442.4,2442.1,0.818994]
[1730604793329,4.85553,2442.4,2442.1,0.818994]
[1730604793549,4.09493,2442.1,2441.6,11.19105]
[1730604793850,0.7612,2442.4,2441.6,11.19105]
[1730604793851,4.09459,2442.3,2441.8,8.19052]
[1730604794054,4.09459,2442.3,2441.8,5.22243188]
[1730604794217,0.7612,2442.4,2442.1,4.09483]
[1730604794415,0.7612,2442.4,2442.0,4.09489]
[1730604794655,4.09462,2442.3,2441.9,3.0]
[1730604794963,4.09462,2442.3,2441.9,7.09515]
[1730604795120,4.85554,2442.4,2441.9,12.01246919]
[1730604795614,4.85554,2442.4,2441.9,4.09508]
[1730604795819,4.85554,2442.4,2441.9,8.19017]
[1730604796015,0.7612,2442.4,2442.0,4.09499]
[1730604796240,0.7612,2442.4,2442.0,4.17677109]
[1730604796445,0.7612,2442.4,2442.2,4.09456]
[1730604797050,0.7612,2442.4,2442.0,4.0949]
[1730604797223,0.7612,2442.4,2442.0,4.91954]
[1730604797430,0.7612,2442.4,2442.1,4.09482]
[1730604797937,0.7612,2442.4,2441.4,0.0563]
[1730604797938,4.0945,2442.3,2441.4,0.0563]
[1730604798139,0.7963,2442.1,2441.7,4.0955]
[1730604798666,4.89115,2442.1,2441.7,4.0955]
[1730604799024,4.095,2442.0,2441.5,4.09572]
[1730604800571,0.7963,2442.1,2441.7,4.09549]
[1730604800919,4.89119,2442.1,2441.5,4.09572]
[1730604801149,4.89119,2442.1,2441.7,4.09548]
[1730604801150,0.7963,2442.1,2441.7,4.09548]
[1730604801365,0.7963,2442.1,2441.7,8.19088]
[1730604801682,0.7963,2442.1,2441.5,4.805402]
[1730604801820,0.7963,2442.3,2442.1,4.09482]
[1730604802020,0.7963,2442.3,2441.9,4.09512]
[1730604803522,0.7963,2442.3,2441.9,8.1902]
[1730604803919,0.7963,2442.3,2442.0,4.09492]
[1730604804221,0.7963,2442.3,2442.1,4.17664345]
[1730604804426,4.89014,2442.7,2442.2,4.09454]
[1730604804622,0.7963,2442.7,2442.3,4.17636555]
[1730604804864,0.7963,2442.7,2442.4,4.09424]
[1730604806073,0.7963,2442.7,2442.4,9.012982]
[1730604806276,0.7963,2442.7,2442.4,4.918742]
[1730604806457,0.7963,2442.9,2442.4,4.918712]
[1730604806661,0.7963,2442.9,2442.4,0.824502]
[1730604806850,0.7963,2442.9,2442.7,4.09382]
[1730604807585,0.7963,2442.9,2442.4,4.09423]
[1730604807889,0.7963,2442.9,2442.5,4.09406]
[1730604808245,0.7963,2442.9,2442.6,4.09391]
[1730604808592,4.88993,2442.9,2442.3,3.0]
[1730604808751,4.88993,2442.9,2442.3,4.09438]
[1730604808752,8.98357,2442.9,2442.3,4.09438]
[1730604809246,8.98357,2442.9,2442.3,4.913273]
[1730604811485,8.98357,2442.9,2442.3,0.818893]
[1730604811786,8.98357,2442.9,2442.4,4.09433]
[1730604812284,4.88993,2442.9,2442.5,4.09414]
[1730604812597,4.88992,2442.9,2442.4,4.09433]
[1730604812755,0.7963,2442.9,2442.5,0.08187766]
[1730604812952,0.7963,2442.9,2442.6,4.09389]
[1730604813706,0.7963,2442.9,2442.5,4.09406]
[1730604814386,0.7963,2442.9,2442.6,4.09399]
[1730604814588,0.7963,2442.9,2442.6,4.912795]
[1730604814783,0.7963,2442.9,2442.6,0.818805]
[1730604815860,0.0607404,2443.0,2442.6,4.969075]
[1730604816060,0.0607404,2443.0,2442.7,4.17553868]
[1730604816260,0.0607404,2443.0,2442.8,0.91446137]
[1730604816460,0.0607404,2443.0,2442.6,4.09398]
[1730604816903,0.0607404,2443.0,2442.7,4.09382]
[1730604817870,0.0607404,2443.0,2442.7,8.18757]
[1730604818204,0.0607404,2443.0,2442.6,4.09396]
[1730604818566,0.0607404,2443.0,2442.3,0.0563]
[1730604818567,0.789,2442.9,2442.4,4.09431]
[1730604818761,4.0939,2442.7,2442.5,0.824501]
[1730604818965,4.09378,2442.8,2442.3,8.1888]
[1730604819261,4.09377,2442.8,2442.3,4.0944]
[1730604819692,4.09366,2442.8,2442.3,4.0944]
[1730604820279,0.789,2442.9,2442.5,4.09406]
[1730604821303,4.09374,2442.8,2442.1,4.09473]
[1730604821607,4.09374,2442.8,2442.3,4.09441]
[1730604821771,8.18749,2442.8,2442.3,4.09441]
[1730604821966,4.09374,2442.8,2442.3,4.09441]
[1730604822172,4.09386,2442.7,2442.3,4.09441]
[1730604822570,4.09374,2442.8,2442.3,4.09441]
[1730604822769,4.09374,2442.8,2442.4,0.8985913]
[1730604823007,8.18753,2442.8,2442.4,0.8985913]
[1730604824111,4.09374,2442.8,2442.4,0.8985913]
[1730604824766,8.1875,2442.8,2442.4,0.8985913]
[1730604824917,0.789,2442.9,2442.5,4.09403]
[1730604825123,4.8825,2442.9,2442.6,0.50489213]
[1730604825321,0.30513293,2442.8,2442.6,0.50489213]
[1730604825644,4.8825,2442.9,2442.3,4.09439]
[1730604825952,0.30515858,2442.8,2442.4,4.09432]
[1730604826123,4.8825,2442.9,2442.4,4.09432]
[1730604826318,4.39894092,2442.8,2442.3,4.09439]
[1730604826652,4.09378,2442.8,2442.3,4.09439]
[1730604826849,4.09385,2442.7,2442.3,0.818918]
[1730604827141,4.09408,2442.6,2442.3,0.818918]
[1730604827516,4.09385,2442.7,2442.3,0.818918]
[1730604828018,4.09385,2442.7,2442.3,4.913408]
[1730604830052,8.97628,2442.9,2442.3,9.007748]
[1730604830261,8.97628,2442.9,2442.4,4.09421]
[1730604830262,0.3051066,2442.8,2442.4,4.09421]
[1730604830476,4.88264,2442.9,2442.5,4.09408]
[1730604830749,0.30512786,2442.8,2442.5,4.09408]
[1730604830952,0.789,2442.9,2442.5,4.09408]
[1730604831139,0.30512804,2442.8,2442.5,4.09408]
[1730604831319,4.88249,2442.9,2442.5,4.09408]
[1730604831652,0.30514954,2442.8,2442.5,4.09408]
[1730604831815,4.88249,2442.9,2442.5,5.01118522]
[1730604832339,0.3051493,2442.8,2442.5,5.01118522]
[1730604832651,0.61032527,2442.8,2442.5,5.01118522]
[1730604832851,0.3051493,2442.8,2442.5,5.01118522]
[1730604833060,0.3051493,2442.8,2442.5,0.91710522]
[1730604833351,0.3051493,2442.8,2442.4,4.09432]
[1730604834115,0.3051493,2442.8,2442.0,7.09499]
[1730604834116,0.3051493,2442.8,2442.6,4.09391]
[1730604834313,0.3051493,2442.8,2442.5,4.15036]
[1730604834764,0.3051493,2442.8,2442.5,4.15043]
[1730604834917,0.3051493,2442.8,2442.3,4.0944]
[1730604835255,0.3051493,2442.8,2442.4,4.5094]
[1730604835550,0.3051493,2442.8,2442.5,4.09416]
[1730604835956,0.3051493,2442.8,2442.4,4.50939]
[1730604836420,0.3051493,2442.8,2442.5,4.09413]
[1730604837033,4.1540804,2443.0,2442.5,4.09413]
[1730604837228,0.30542665,2442.9,2442.6,0.860352]
[1730604837550,4.1540804,2443.0,2442.6,0.860352]
[1730604837743,0.3054337,2442.9,2442.6,0.860352]
[1730604837942,4.1540804,2443.0,2442.6,0.860352]
[1730604838272,4.92202,2442.3,2441.8,4.09523]
[1730604838423,4.92202,2442.3,2441.5,5.29124153]
[1730604838424,4.09508,2442.0,2441.5,5.29124153]
[1730604838627,4.09508,2442.0,2441.5,4.09582]
[1730604838829,4.09475,2442.2,2441.6,0.91067265]
[1730604839167,4.92201,2442.3,2441.8,4.09533]
[1730604839322,0.30537574,2442.2,2441.8,4.09533]
[1730604839656,4.92201,2442.3,2441.8,4.09533]
[1730604839860,0.305356,2442.2,2441.9,0.08189746]
[1730604840018,4.92176,2442.5,2442.0,4.09489]
[1730604840225,0.30536937,2442.4,2442.0,9.02262912]
[1730604840525,4.92137,2442.7,2442.3,4.09448]
[1730604840718,0.30539182,2442.6,2442.4,4.09427]
[1730604840922,0.8275,2442.9,2442.3,0.0563]
[1730604841269,4.39907657,2442.8,2442.3,4.09437]
[1730604841431,4.09366,2442.8,2442.3,9.013326]
[1730604841766,0.30548675,2442.7,2442.3,9.013326]
[1730604842067,4.09366,2442.8,2442.3,4.918906]
[1730604842223,0.30555406,2442.7,2442.3,4.918906]
[1730604842424,4.09366,2442.8,2442.3,4.918906]
[1730604842723,4.39946969,2442.7,2442.3,4.918906]
[1730604842923,4.09385,2442.7,2442.3,4.918906]
[1730604843164,4.09385,2442.7,2441.9,7.09514]
[1730604843165,0.7586,2442.5,2441.9,0.0563]
[1730604843406,0.7586,2442.5,2441.8,4.17721931]
[1730604843407,4.0946,2442.3,2441.8,4.17721931]
[1730604844129,4.0946,2442.3,2441.8,4.09533]
[1730604844354,4.09433,2442.4,2441.9,4.99599321]
[1730604844562,0.7586,2442.5,2442.1,4.09473]
[1730604844979,0.7586,2442.5,2441.9,4.914141]
[1730604845164,4.40018715,2442.4,2441.9,8.19016]
[1730604845367,4.09434,2442.4,2441.9,8.19016]
[1730604845555,4.09434,2442.4,2441.9,4.09507]
[1730604845755,4.85278,2442.5,2442.0,4.0949]
[1730604845956,4.40028049,2442.4,2442.0,4.0949]
[1730604846155,4.09435,2442.4,2442.0,4.913897]
[1730604847389,0.30604507,2442.3,2442.0,4.913897]
[1730604847699,4.09435,2442.4,2442.0,4.913897]
[1730604847862,0.30604482,2442.3,2442.0,0.818997]
[1730604848077,4.09435,2442.4,2442.0,0.818997]
[1730604848261,0.7586,2442.5,2441.6,5.01063654]
[1730604848467,0.7586,2442.5,2441.7,1.98592017]
[1730604848468,4.09476,2442.2,2441.7,1.98592017]
[1730604848687,4.09476,2442.2,2441.7,4.09549]
[1730604848890,4.09476,2442.2,2441.7,4.30607045]
[1730604849089,4.09476,2442.2,2441.7,5.66656013]
[1730604849293,4.09442,2442.4,2441.9,4.09502]
[1730604849608,0.3062231,2442.3,2441.9,4.09502]
[1730604849833,4.09442,2442.4,2441.9,4.09502]
[1730604850129,0.30622237,2442.3,2441.9,8.1901]
[1730604850341,4.09442,2442.4,2442.0,0.84006931]
[1730604850488,0.30623215,2442.3,2442.0,0.84006931]
[1730604850694,4.09442,2442.4,2441.9,4.09502]
[1730604850924,0.30625377,2442.3,2441.9,8.19009]
[1730604851305,4.09442,2442.4,2441.9,8.19009]
[1730604851510,0.30625411,2442.3,2441.9,4.09502]
[1730604851710,4.09483,2442.1,2441.7,5.45591968]
[1730604851912,4.09502,2442.0,2441.6,5.01068654]
[1730604852226,4.09483,2442.1,2441.6,5.01068654]
[1730604852227,4.09483,2442.1,2441.7,1.98624165]
[1730604852387,4.09483,2442.1,2441.7,1.06537191]
[1730604852586,4.09483,2442.1,2441.7,5.87102317]
[1730604852833,4.09483,2442.1,2441.7,5.61244995]
[1730604853731,4.09483,2442.1,2441.8,0.71011417]
[1730604855047,4.85343,2442.1,2441.7,1.51697995]
[1730604855967,4.09504,2442.0,2441.6,5.21704965]
[1730604856156,4.09504,2442.0,2441.6,4.15193]
[1730604856655,4.09504,2442.0,2441.5,0.85872654]
[1730604856656,4.09504,2442.0,2441.5,4.95453654]
[1730604856857,4.09519,2441.9,2441.6,0.7100191]
[1730604857058,4.09504,2442.0,2441.6,0.7100191]
[1730604857363,4.09529,2441.9,2441.4,8.01103654]
[1730604857513,4.09529,2441.9,2441.5,2.57600202]
[1730604857717,4.09504,2442.0,2441.5,1.86604267]
[1730604857918,4.09504,2442.0,2441.6,4.09565]
[1730604858141,4.09504,2442.0,2441.5,4.89678365]
[1730604859159,4.09544,2441.8,2441.5,0.80110365]
[1730604859523,4.09584,2441.5,2441.1,0.85872654]
[1730604859731,4.09584,2441.5,2441.0,1.28808982]
[1730604859732,4.09615,2441.4,2441.0,1.27531473]
[1730604859925,4.09615,2441.4,2440.9,5.34856333]
[1730604859926,4.09651,2441.1,2440.8,1.19557967]
[1730604860127,4.09668,2441.0,2440.7,1.06492322]
[1730604860344,8.98251,2441.3,2440.7,5.18112089]
[1730604860674,8.98251,2441.3,2440.7,1.08397089]
[1730604860675,4.09658,2441.1,2440.7,1.08397089]
[1730604860850,4.09649,2441.2,2440.7,5.18113089]
[1730604861677,8.19292,2441.2,2440.7,5.18113089]
[1730604861968,0.7899,2441.3,2440.7,1.08397089]
[1730604862302,0.7899,2441.3,2440.3,3.0]
[1730604862303,4.88708,2440.7,2440.3,4.09784]
[1730604862862,4.88708,2440.7,2440.2,0.0563]
[1730604862863,4.09743,2440.6,2440.2,0.0563]
[1730604863060,4.0977,2440.4,2440.0,0.0563]
[1730604863264,4.09743,2440.6,2440.0,0.0563]
[1730604863265,4.09752,2440.5,2440.0,0.0563]
[1730604863563,4.09826,2440.1,2439.7,0.85872654]
[1730604863760,4.09826,2440.1,2439.6,1.28808982]
[1730604863761,4.09796,2440.3,2439.8,4.0986]
[1730604863989,0.7899,2440.4,2439.8,8.19715]
[1730604864300,8.19626,2440.2,2439.6,8.19781]
[1730604864705,4.0982,2440.1,2439.6,4.0989]
[1730604864910,4.0982,2440.1,2439.4,4.15554]
[1730604864911,4.09848,2440.0,2439.7,0.40989]
[1730604865224,4.09848,2440.0,2439.4,8.25479]
[1730604865225,4.09848,2440.0,2439.5,4.09918]
[1730604865372,4.09813,2440.2,2439.6,4.0989]
[1730604866272,8.19625,2440.2,2439.6,4.0989]
[1730604866601,4.09812,2440.2,2439.4,0.0563]
[1730604866901,4.09816,2440.2,2439.6,4.09893]
[1730604867102,4.09816,2440.2,2439.7,0.409893]
[1730604867272,8.19628,2440.2,2439.7,0.409893]
[1730604867685,4.09847,2440.0,2439.4,7.15556]
[1730604867865,4.0987,2439.8,2439.3,3.0]
[1730604868606,4.0987,2439.8,2439.3,7.0995]
[1730604868973,0.7899,2439.9,2439.4,4.09936]
[1730604869311,4.09929,2439.5,2439.0,4.09995]
[1730604869832,4.09929,2439.5,2439.1,0.08198897]
[1730604870044,4.09929,2439.5,2439.0,4.09995]
[1730604870328,8.19858,2439.5,2439.0,4.09995]
[1730604870534,4.09929,2439.5,2439.0,4.09995]
[1730604870827,4.09929,2439.5,2439.1,0.825632]
[1730604871235,8.1986,2439.5,2439.1,0.825632]
[1730604871436,4.09929,2439.5,2439.1,0.825632]
[1730604872007,8.19859,2439.5,2439.1,0.825632]
[1730604872399,4.09929,2439.5,2439.1,0.825632]
[1730604874302,8.1986,2439.5,2439.1,0.825632]
[1730604874502,4.09929,2439.5,2439.0,4.09998]
[1730604874925,0.7899,2439.4,2439.0,4.10001]
[1730604875164,0.7899,2439.4,2438.9,4.10007]
[1730604875461,0.7899,2440.0,2439.1,0.0563]
[1730604875668,0.7899,2440.0,2439.7,4.09884]
[1730604875825,4.88788,2440.3,2439.7,4.508724]
[1730604876179,4.88788,2440.3,2439.9,4.09851]
[1730604876180,0.7899,2440.3,2439.9,4.09851]
[1730604876458,0.7899,2440.3,2439.7,4.508724]
[1730604876661,4.09803,2440.2,2439.7,4.508724]
[1730604876865,4.09803,2440.2,2439.7,8.607484]
[1730604877054,4.09803,2440.2,2439.8,0.8663784]
[1730604878666,0.7899,2440.3,2439.8,4.9649684]
[1730604878838,4.88781,2440.3,2439.8,4.9649684]
[1730604881935,0.7899,2440.3,2439.8,0.8663784]
[1730604882141,4.09804,2440.2,2439.8,0.8663784]
[1730604882829,4.09804,2440.2,2439.7,4.09876]